Cogmind - Beta 14 @@@ ROGUE MODE // 2024.11.07 @ 09:44:58 Player: Shimmyarah Result: Self-destructed Performance ------------- Evolutions (3) 1500 Regions Visited (6) 1200 Robots Destroyed (34) 170 Value Destroyed (862) 862 Prototype IDs (1) 20 Alien Tech Used (0) 0 Bonus (0) 0 TOTAL SCORE: 3752 Bonus ------- None Cogmind --------- Core Integrity 626/700 Matter 51/300 Energy 6/150 System Corruption 0% Temperature Cool (0) Movement Treading (155) Location -7/Lower Caves Parts ------- > --- POWER (1) -------- Micro Nuclear Core > --- PROPULSION (3) --- Light Treads Improved Treads Advanced Treads > --- UTILITY (6) ------ Small Storage Unit Visual Processing Unit Sensor Array Signal Interpreter Kinecellerator Makeshift ECM Suite > --- WEAPON (3) ------- Flak Gun Flak Gun Flak Gun > --- INVENTORY (8) ---- Micro Nuclear Core Hardened Medium Armor Plating Heavy Assault Cannon Advanced Assault Cannon Improved Grenade Launcher Missile Launcher Peak State ------------ > --- POWER ------------ Micro Nuclear Core > --- PROPULSION ------- Light Treads Improved Treads Advanced Treads > --- UTILITY ---------- Small Storage Unit Visual Processing Unit Sensor Array Signal Interpreter Improved Terrain Scanner Kinecellerator > --- WEAPON ----------- Flak Gun Flak Gun Flak Gun > --- INVENTORY -------- Micro Nuclear Core Seismic Detector Hardened Medium Armor Plating Heavy Assault Cannon Improved Grenade Launcher Missile Launcher [Rating: 36] Favorites ----------- Power Micro Nuclear Core Engine Ion Engine Power Core Micro Nuclear Core Propulsion Light Treads Treads Light Treads Utility Small Storage Unit Device Sensor Array Storage Small Storage Unit Processor Signal Interpreter Weapon Flak Gun Energy Gun Pulse Rifle Energy Cannon Ion Cannon Ballistic Gun Flak Gun Launcher Grenade Launcher Special Weapon Mining Laser Build | -11 -10 -9 -9 -8 -7 -7 ------- Run | Yrd Mat Mat Min Mat Fac Low Slots Evolved 6 | . . 2 . 2 2 . Power . | . . . . . . . Propulsion 1 | . . . . . 1 . Utility 4 | . . 2 . 2 . . Weapon 1 | . . . . . 1 . Parts Attached 44 | 7 1 3 . 23 3 7 Power 3 | 1 . . . 1 . 1 Engine 1 | 1 . . . . . . Core 2 | . . . . 1 . 1 Reactor . | . . . . . . . Propulsion 6 | 2 . . . 3 1 . Treads 6 | 2 . . . 3 1 . Leg . | . . . . . . . Wheel . | . . . . . . . Hover . | . . . . . . . Flight . | . . . . . . . Utility 16 | 2 1 2 . 8 1 2 Device 13 | 1 . 2 . 7 1 2 Storage 1 | 1 . . . . . . Processor 2 | . 1 . . 1 . . Hackware . | . . . . . . . Protection . | . . . . . . . Artifact . | . . . . . . . Weapon 19 | 2 . 1 . 11 1 4 Energy Gun 1 | . . . . 1 . . Energy Cannon 2 | . . . . 2 . . Ballistic Gun 11 | 2 . . . 6 1 2 Ballistic Cannon . | . . . . . . . Launcher 4 | . . 1 . 1 . 2 Special Weapon 1 | . . . . 1 . . Impact Weapon . | . . . . . . . Slashing Weapon . | . . . . . . . Piercing Weapon . | . . . . . . . Special Melee Weapon . | . . . . . . . Unidentified Prototypes 1 | . . . . 1 . . Parts Lost 4 | . . . . 2 . 2 Power . | . . . . . . . Propulsion . | . . . . . . . Utility 3 | . . . . 1 . 2 Weapon 1 | . . . . 1 . . Highest Loss Streak 2 | . . . . 2 . 1 To Critical Strikes . | . . . . . . . Average Slot Usage (%) 99 | . 100 99 100 99 100 98 Engine 4 | . 14 11 11 2 . . Core 4 | . . . . 6 7 7 Treads 21 | . 28 22 22 18 23 23 Device 23 | . 14 21 22 26 23 21 Storage 9 | . 14 11 11 9 7 7 Processor 13 | . . 11 11 18 15 15 Energy Cannon 1 | . . . . 2 . . Ballistic Gun 16 | . 28 14 11 11 23 19 Launcher 3 | . . 7 11 1 . 3 Peak Build Rating 36 | 7 8 11 11 31 36 36 Average Rating 22 | 4 7 10 11 24 34 33 On Entrance 14 | . 7 8 11 11 31 33 Naked Turns . | . . . . . . . Heaviest Build 36 | 15 15 17 17 26 29 36 Greatest Support 65 | 40 40 40 40 45 65 65 Greatest Overweight (x) . | . . . . . . . Average Overweight (x) . | . . . . . . . Largest Inventory Capacity 8 | 8 8 8 8 8 8 8 Average Capacity 7 | 7 8 8 8 8 8 8 Most Carried 8 | 5 8 7 7 8 8 8 Average Carried 7 | 3 5 6 7 7 6 7 Final Capacity 8 | 8 8 8 8 8 8 8 Final Carried 8 | 3 8 7 7 8 8 7 Class Distribution -------------------- 52% | Scavenger-Skirmisher 32% | Skirmisher 14% | Mutant Dominant Class ---------------- Mutant | -10/Materials Skirmisher | -9/Materials Skirmisher | -9/Mines Scavenger-Skirmisher | -8/Materials Scavenger-Skirmisher | -7/Factory Scavenger-Skirmisher | -7/Lower Caves Resources | -11 -10 -9 -9 -8 -7 -7 ----------- Run | Yrd Mat Mat Min Mat Fac Low Matter Collected 993 | 283 97 . . 516 . 97 Remotely . | . . . . . . . Salvage Created 878 | 79 144 70 . 452 . 133 Parts 67 | 6 14 4 . 39 . 4 Haulers Intercepted 2 | . . . . 2 . . Recyclers Shooed 1 | 1 . . . . . . Parts Field Recycled . | . . . . . . . Retrieved Matter . | . . . . . . . Parts Self-Destructed 3 | . . . . . . 3 Prevented . | . . . . . . . Kills | -11 -10 -9 -9 -8 -7 -7 ------- Run | Yrd Mat Mat Min Mat Fac Low Combat Hostiles Destroyed 19 | . 2 1 . 10 . 6 Melee 1 | . . . . . . 1 Guns 11 | . 2 . . 8 . 1 AOE 7 | . . 1 . 2 . 4 Classes Destroyed 11 | 1 2 2 . 5 . 1 Worker 2 | . . 2 . . . . Builder 2 | . . 1 . 1 . . Tunneler 3 | 3 . . . . . . Hauler 2 | . . . . 2 . . Recycler 1 | . . . . 1 . . Watcher 5 | . 3 . . 2 . . Swarmer 5 | . . . . 4 . 1 Grunt 8 | . 2 1 . 2 . 3 Sentry 4 | . . . . 3 . 1 Hunter 1 | . . . . 1 . . Programmer 1 | . . . . . . 1 Best Kill Streak 5 | 2 2 3 . 4 . 5 Combat Bots Only 5 | . 1 1 . 4 . 5 Max Kills in Single Turn 2 | 1 1 2 . 2 . 2 Gunslinging . | . . . . . . . Exploded 2 | . . 1 . 2 . 2 Melee 1 | . . . . . . 1 Uniques/NPCs Destroyed . | . . . . . . . Combat | -11 -10 -9 -9 -8 -7 -7 -------- Run | Yrd Mat Mat Min Mat Fac Low Hostile Shots Fired 155 | . 11 5 . 42 . 97 Missed 53 | . 8 1 . 11 . 33 Damage Taken 1210 | . 38 40 . 487 . 645 Core 236 | . 10 20 . 132 . 74 Absorbed by Shields . | . . . . . . . Core Remaining (%) 91 | 100 96 . 95 76 . . Volleys Fired 83 | 12 16 7 . 39 . 9 Largest 3 | 1 2 2 . 2 . 3 Hottest 100 | 20 40 50 . 100 . 100 Shots Fired 145 | 12 32 10 . 69 . 22 Gun 121 | 12 32 7 . 60 . 10 Cannon . | . . . . . . . Launcher 22 | . . 3 . 7 . 12 Special 2 | . . . . 2 . . Kinetic 106 | 12 32 7 . 45 . 10 Thermal 17 | . . . . 17 . . Explosive 22 | . . 3 . 7 . 12 Electromagnetic . | . . . . . . . Robot Hit Streak 6 | 5 6 5 . 5 . 4 Robot Miss Streak 6 | 2 3 2 . 6 . 5 Penetration Max . | . . . . . . . Secondary Targets . | . . . . . . . Shots Hit Robots 75 | 7 16 4 . 37 . 11 Core Hits 72 | 3 9 6 . 36 . 18 Critical Kills . | . . . . . . . Critical Parts Destroyed . | . . . . . . . Critical Strikes 1 | . . . . 1 . . Burn 1 | . . . . 1 . . Melee Attacks . | . . . . . . . Impact . | . . . . . . . Slashing . | . . . . . . . Piercing . | . . . . . . . Sneak Attacks . | . . . . . . . Combat Hostiles . | . . . . . . . Follow-up Attacks . | . . . . . . . Damage Inflicted 2078 | 89 219 277 . 1055 . 438 Guns 1191 | 89 219 50 . 739 . 94 Cannons . | . . . . . . . Explosions 851 | . . 224 . 286 . 341 Melee . | . . . . . . . Ramming 36 | . . 3 . 30 . 3 Kinetic 1007 | 89 219 50 . 555 . 94 Thermal 184 | . . . . 184 . . Explosive 851 | . . 224 . 286 . 341 Electromagnetic . | . . . . . . . Impact . | . . . . . . . Slashing . | . . . . . . . Piercing . | . . . . . . . Highest Corruption . | . . . . . . . Average Corruption . | . . . . . . . Corruption Purged . | . . . . . . . Corruption Blocked . | . . . . . . . Overload Shots . | . . . . . . . Overflow Damage 52 | . . . . 52 . . Projectiles . | . . . . . . . Explosions 52 | . . . . 52 . . Melee . | . . . . . . . Knockbacks . | . . . . . . . Impact . | . . . . . . . Kinetic . | . . . . . . . Secondary . | . . . . . . . Self-Inflicted Damage 78 | . . . . 41 . 37 Shots 5 | . . . . 2 . 3 Rammed 8 | . . 1 . 7 . . Targets Rammed 10 | . . 1 . 8 . 1 Kicked . | . . . . . . . Crushed 2 | . . . . 1 . 1 Highest Temperature 167 | . 2 . . 167 . 111 Average Temperature 56 | . 2 . . 54 . 62 Received Heat Transfer 324 | . 21 24 . 135 . 144 Siege Activations . | . . . . . . . Robots Corrupted . | . . . . . . . Combat Hostiles . | . . . . . . . Parts Fried . | . . . . . . . Impact Corruptions . | . . . . . . . Robots Melted . | . . . . . . . Combat Hostiles . | . . . . . . . Parts Melted . | . . . . . . . Heat Transferred 481 | . . . . 481 . . Parts Sabotaged . | . . . . . . . Parts Stolen . | . . . . . . . Parts Stripped . | . . . . . . . Power Chain Reactions . | . . . . . . . Alert | -11 -10 -9 -9 -8 -7 -7 ------- Run | Yrd Mat Mat Min Mat Fac Low Peak Influence 178 | 15 131 59 22 178 35 . Initial 35 | . 9 . 22 8 35 . Average 47 | 7 70 20 22 56 35 . Maximum Alert Level . | . . . . . . . Low Security (%) 100 | 100 100 100 100 100 100 . Level 1 . | . . . . . . . Level 2 . | . . . . . . . Level 3 . | . . . . . . . Level 4 . | . . . . . . . Level 5 . | . . . . . . . High Security . | . . . . . . . Max Security . | . . . . . . . Squads Dispatched . | . . . . . . . Investigation . | . . . . . . . Extermination . | . . . . . . . Reinforcement . | . . . . . . . Assault . | . . . . . . . Garrison . | . . . . . . . Intercept . | . . . . . . . Searches Triggered . | . . . . . . . Construction Impeded . | . . . . . . . Haulers Reinforced . | . . . . . . . Active Scanning Responses . | . . . . . . . Cargo Convoy Interrupts . | . . . . . . . Stealth | -11 -10 -9 -9 -8 -7 -7 --------- Run | Yrd Mat Mat Min Mat Fac Low Distress Signals . | . . . . . . . Communications Jammed . | . . . . . . . Distress Signals . | . . . . . . . Times Spotted 30 | . 6 2 . 16 . 6 Peak Tracking Total 5 | . 2 2 . 5 . 5 Tactical Retreats 1 | . . . . 1 . . Traps | -11 -10 -9 -9 -8 -7 -7 ------- Run | Yrd Mat Mat Min Mat Fac Low Traps Triggered . | . . . . . . . Indirectly . | . . . . . . . Trap Hack Attempts . | . . . . . . . Triggered . | . . . . . . . Disarmed . | . . . . . . . Reprogrammed . | . . . . . . . Reused . | . . . . . . . Traps Extracted . | . . . . . . . Installed . | . . . . . . . Triggered . | . . . . . . . Machines | -11 -10 -9 -9 -8 -7 -7 ---------- Run | Yrd Mat Mat Min Mat Fac Low Machines Disabled . | . . . . . . . Max in Single Turn . | . . . . . . . Machines Repaired . | . . . . . . . Machines Dismantled . | . . . . . . . Machines Sabotaged . | . . . . . . . Overloaded Fab Kills . | . . . . . . . Hacking | -11 -10 -9 -9 -8 -7 -7 --------- Run | Yrd Mat Mat Min Mat Fac Low Machines Accessed 6 | . 1 1 . 2 1 1 Terminals 5 | . 1 1 . 2 1 . Fabricators . | . . . . . . . Repair Stations . | . . . . . . . Recycling Units . | . . . . . . . Scanalyzers . | . . . . . . . Garrison Access . | . . . . . . . Total Hacks 14 | . 2 2 . 6 3 1 Successful 6 | . 1 1 . 2 1 1 Failed 8 | . 1 1 . 4 2 . Catastrophic 1 | . . . . . 1 . Database Lockouts . | . . . . . . . Manual 13 | . 2 2 . 6 3 . Terminals 13 | . 2 2 . 6 3 . Fabricators . | . . . . . . . Repair Stations . | . . . . . . . Recycling Units . | . . . . . . . Scanalyzers . | . . . . . . . Garrison Access . | . . . . . . . Terminal Hacks 1 | . . . . . . 1 Open Door 1 | . . . . . . 1 Fabricator Hacks . | . . . . . . . Repair Station Hacks . | . . . . . . . Recycling Unit Hacks . | . . . . . . . Scanalyzer . | . . . . . . . Garrison Access Hacks . | . . . . . . . Unauthorized Hacks 5 | . 1 1 . 2 1 . Terminals 5 | . 1 1 . 2 1 . Operators 5 | . 1 1 . 2 1 . Fabricators . | . . . . . . . Repair Stations . | . . . . . . . Recycling Units . | . . . . . . . Scanalyzers . | . . . . . . . Garrison Access . | . . . . . . . Data Cores Recovered . | . . . . . . . Used . | . . . . . . . Hacking Detections 3 | . 1 . . 1 1 . Full Trace Events 1 | . . . . 1 . . Feedback Events . | . . . . . . . Feedback Blocked . | . . . . . . . Robot Schematics Acquired . | . . . . . . . Robots Built . | . . . . . . . Authchips . | . . . . . . . Time . | . . . . . . . Total Robot Build Rating . | . . . . . . . Part Schematics Acquired . | . . . . . . . Parts Built . | . . . . . . . Authchips . | . . . . . . . Time . | . . . . . . . Total Part Build Rating . | . . . . . . . Parts Repaired . | . . . . . . . Time . | . . . . . . . Parts Recycled . | . . . . . . . Recycled Matter . | . . . . . . . Retrieved Matter . | . . . . . . . Retrieved Components . | . . . . . . . Parts Scanalyzed . | . . . . . . . Part Schematics Acquired . | . . . . . . . Parts Damaged . | . . . . . . . Bothacking | -11 -10 -9 -9 -8 -7 -7 ------------ Run | Yrd Mat Mat Min Mat Fac Low Used RIF Installer . | . . . . . . . Robots Hacked . | . . . . . . . Non-combat . | . . . . . . . Combat . | . . . . . . . Robot Hacks Applied . | . . . . . . . Relay Couplers Released . | . . . . . . . Fabnet Peak Effective % . | . . . . . . . Robots Rewired . | . . . . . . . Allies Hacked . | . . . . . . . Hacks Repelled . | . . . . . . . Allies | -11 -10 -9 -9 -8 -7 -7 -------- Run | Yrd Mat Mat Min Mat Fac Low Total Allies . | . . . . . . . Largest Group . | . . . . . . . Highest-Rated Group . | . . . . . . . Highest-Rated Ally . | . . . . . . . Total Orders . | . . . . . . . Ally Attacks . | . . . . . . . Total Damage . | . . . . . . . Kills . | . . . . . . . Allies Corrupted . | . . . . . . . Allies Melted . | . . . . . . . Intel | -11 -10 -9 -9 -8 -7 -7 ------- Run | Yrd Mat Mat Min Mat Fac Low Robot Analysis Total . | . . . . . . . Derelict Logs Recovered 1 | . . . 1 . . . Drone Launches . | . . . . . . . Drone Recoveries . | . . . . . . . Exploration | -11 -10 -9 -9 -8 -7 -7 ------------- Run | Yrd Mat Mat Min Mat Fac Low Turns Passed 4013 | 124 464 376 285 1597 251 916 Spaces Moved 2342 | 57 255 221 179 908 159 563 Core 6 | 6 . . . . . . Treads 2336 | 51 255 221 179 908 159 563 Legs . | . . . . . . . Wheels . | . . . . . . . Hover . | . . . . . . . Flight . | . . . . . . . Fastest Speed 50 | 50 160 160 160 152 155 155 Average Speed 156 | 148 160 160 160 155 155 155 Slowest Speed 160 | 160 160 160 160 160 155 155 Overloaded Moves . | . . . . . . . Propulsion Burnouts . | . . . . . . . Robots Hopped . | . . . . . . . Cave-ins Triggered . | . . . . . . . Exploration Rate (%) 27 | 4 47 17 33 41 5 48 Regions Visited 6 Branch Regions 2 Pre-discovered Areas . | . . . . . . . Known Exits Taken 5 | . 1 1 1 1 1 . Unknown Exits Taken 1 | 1 . . . . . . Scrap Searched 1 | . . . . . . 1 Spaces Dug 12 | . . 3 . 9 . . Terrain Destroyed 106 | . . 17 . 48 . 41 Melee . | . . . . . . . Projectile 2 | . . . . 2 . . AOE 104 | . . 17 . 46 . 41 Terrain Rammed . | . . . . . . . Walls Destroyed . | . . . . . . . Machines Disabled . | . . . . . . . Actions | -11 -10 -9 -9 -8 -7 -7 --------- Run | Yrd Mat Mat Min Mat Fac Low Total 2542 | 85 280 232 178 1021 163 583 Wait . | . . . . . . . Move 2336 | 56 254 220 178 907 158 563 Hop . | . . . . . . . Pick Up 45 | 10 7 1 . 23 2 2 Fast Attach . | . . . . . . . Attach 19 | 7 . 2 . 6 2 2 Detach . | . . . . . . . Swap 25 | . 1 1 . 17 1 5 Drop 24 | . 2 . . 21 . 1 Fire 83 | 12 16 7 . 39 . 9 Melee . | . . . . . . . Ram . | . . . . . . . Kick . | . . . . . . . Crush 10 | . . 1 . 8 . 1 Escape Stasis . | . . . . . . . Rewire . | . . . . . . . Trap . | . . . . . . . Miscellaneous . | . . . . . . . Route ------- -11/Scrapyard -10/Materials -9/Materials -9/Mines -8/Materials -7/Factory -7/Lower Caves History --------- Turn | Location | Event 53 | -11/Scrapyard | Discovered new exit (range 13) 125 | -11/Scrapyard | Entered Materials 313 | -10/Materials | Build established: Mutant 549 | -10/Materials | Discovered new exit (range 16) 588 | -10/Materials | Identified exit to Materials 589 | -10/Materials | Entered another Materials area 589 | -9/Materials | Evolved 2 slots: Utility x2 884 | -9/Materials | Build established: Skirmisher 947 | -9/Materials | Discovered new exit (range 6) 963 | -9/Materials | Identified exit to Mines 965 | -9/Materials | Entered Mines 984 | -9/Mines | Met a Derelict bent on vengeance 985 | -9/Mines | Learned Materials stockpile data 1213 | -9/Mines | Discovered new exit (range 10) 1231 | -9/Mines | Identified exit to Materials 1250 | -9/Mines | Entered Materials 1250 | -8/Materials | Evolved 2 slots: Utility x2 1550 | -8/Materials | Build established: Scavenger-Skirmisher 2677 | -8/Materials | Build established: Skirmisher 2838 | -8/Materials | Discovered new exit (range 5) 2845 | -8/Materials | Identified exit to Factory 2847 | -8/Materials | Entered Factory 2847 | -7/Factory | Evolved 2 slots: Propulsion x1, Weapon x1 2994 | -7/Factory | Discovered new exit (range 17) 3037 | -7/Factory | Identified exit to Lower Caves 3098 | -7/Factory | Entered Lower Caves 3129 | -7/Lower Caves | Build established: Scavenger-Skirmisher 3608 | -7/Lower Caves | Attracted the attention of an 0b10 checkpoint 4014 | -7/Lower Caves | Self-destructed Last Messages --------------- Sealed Heavy Doors opened. 03901_ Imp. Terrain Scanner destroyed. 03902_ Acquired 20 matter. 03921_ Crushed P-60 Hacker. 03921_ P-60 Hacker destroyed. 03922_ Acquired 17 matter. 03924_ Acquired Mic. Nuclear Core. 03925_ Gravmag System fries itself beyond repair. 03927_ Dropped Mic. Nuclear Core. 03929_ Gravmag System fries itself beyond repair. 03935_ Searching scrap... 03935_ Found Salvage Targeting Computer. 03935_ Found Core Shielding. 03935_ Found Mak. ECM Suite. 03935_ Found Mak. Spear. 03935_ Found 60 Matter. 03936_ Acquired 60 matter. 03944_ Acquired Mak. ECM Suite. Map ----- +----------------------------------------------------+ | ?????????????????????????????????????????????????? | | ?????????????????????????????????????????????????? | | ?????????????????????????????????????????????????? | | ?????????????????????????????????????????????????? | | ?????????????????????????????????????????????????? | | ?????????????????????????????????????????????????? | | ?????????????????????????????????????????????????? | | ?????????????????????????????????????????????????? | | ?????????????????????????????????????????????????? | | ?????????????????????????????????????????????????? | | ?????????????????????????????????????????????????? | | ?????????????????????????????????????????????????? | | ?????????????????????????????????????????????????? | | ?????????????????????????????????????????????????? | | ????????????????????????#????????????????????????? | | ???????????????????????? ###?????????????????????? | | ???????????????????????? ?????????????????????? | | ???????????????????????? ?????????????????????? | | ???????????????????????? #?????????????????????? | | ??????????????????####??# #?????????????????????? | | ??????????????????? ??# #?????????????????????? | | ???????????????????# #?# #?????????????????????? | | ???????????????????#% #?#!%#?????????????????????? | | ???????????????????# #?# *#?????????????????????? | | ???????????????????# ### ##????????#???????????? | | ????????????????????# ##@ ##### ##??????????? | | ????????????????????# #??????????? | | ????????????????????# #??????????? | | ??????????????????### ## ### ##??????????? | | ??????????????????# #?# #???? ##????#??????? | | ?????????????????## #??###??????????????????? | | ?????? ?????????## ##??????????????????????#? | | ???????????????## #????????????????????????? | | ???#???????# ?## ###??????????????????????? | | ???# ??????# # ### ###?????????????#????#?? | | ???# ??????# ### #?????????????????#??? | | ???# ?????#### # ### ###### ###??????????? | | ???# ????????# # ## #???##??#??? | | ???# ???????##### / ## #??????????# | | ???# ##????????# ! # * ## ###?????###### | | #### ##??#??## ! ##????? #???????# | | #?????# #??????????#????# ## | | ##???## #### #????????????? ???## | | """ " #?### #??# ?????????????????# | | """"""" ### ####??? #?????????????? | | """"""" #?????? #?????????#?#?? | | """ " #????? #????????????? | | ## #????? #??# ??????? | | ### #???? ## ?# ?????# | | ## #### #?## ########???? #?# # ??? | +----------------------------------------------------+ Best States ------------- Heat Dissipation 34 Energy Generation 15 Energy Capacity 250 Matter Stores 297 Matter Capacity 300 Sight Range 18 Robot Scan Range 14 Terrain Scan Range 16 Terrain Scan Density 10 ECM Strength 2 Evasion (%) 40 Recoil Reduction 3 Kinecelleration 30 Item Schematics ----------------- None Robot Schematics ------------------ None Fabricated ------------ Nothing Alien Tech Used ----------------- None Achievements -------------- None Challenges ------------ None Game ------ Seed TargetWeldingDeconstructor Manual? 0 Play Time 00:34:36 Cumulative 14.9 hours Start 2024.11.07 @ 09:03:50 End 2024.11.07 @ 09:44:58 Sessions 3 Manual Loads 0 Difficulty Rogue Special Mode None Game No. 35 Rogue 35 Adventurer 0 Explorer 0 Win Type - Total 0 Types 0/0/0/0/0/0/0/0/0 Lore% 8 Gallery% 15 Achievement% 15 Wizard Run 0 Options --------- Layout 1 ASCII 0 Keyboard 0 Movement Arrows Keybinds 0 Fullscreen 1 Font 24/Smallcaps Map View 50x40 Zoom Use 10% Tactical HUD 1 Map Filters NONE Filters NONE Steam 1 RUN: 5320abdd-6823-42b1-b0c3-eb89f62fd358